Cogmind - Beta 13 @@@ ROGUE MODE // 2024.07.19 @ 11:38:47 Player: Castelle Result: Self-destructed Performance ------------- Evolutions (1) 500 Regions Visited (2) 400 Robots Destroyed (18) 90 Value Destroyed (269) 269 Prototype IDs (1) 20 Alien Tech Used (0) 0 Bonus (0) 0 TOTAL SCORE: 1279 Bonus ------- None Cogmind --------- Core Integrity 339/400 Matter 156/300 Energy 57/125 System Corruption 0% Temperature Cool (21) Movement Walking (120) Location -9/Materials Parts ------- > --- POWER (1) -------- Light Ion Engine > --- PROPULSION (3) --- Aluminum Leg Aluminum Leg > --- UTILITY (3) ------ Small Storage Unit Seismic Detector > --- WEAPON (2) ------- EMP Blaster Grenade Launcher > --- INVENTORY (8) ---- Light Ion Engine Light Assault Rifle EMP Blaster EMP Blaster EMP Blaster Peak State ------------ > --- POWER ------------ Light Ion Engine > --- PROPULSION ------- Aluminum Leg Aluminum Leg > --- UTILITY ---------- Small Storage Unit Seismic Detector Medium Armor Plating > --- WEAPON ----------- Grenade Launcher Datajack > --- INVENTORY -------- Light Ion Engine Light Assault Rifle EMP Blaster EMP Blaster EMP Blaster EMP Blaster [Rating: 10] Favorites ----------- Power Light Ion Engine Engine Light Ion Engine Propulsion Aluminum Leg Leg Aluminum Leg Utility Small Storage Unit Device Seismic Detector Storage Small Storage Unit Protection Medium Armor Plating Weapon Grenade Launcher Energy Gun EM Pulse Gun Ballistic Gun Light Assault Rifle Launcher Grenade Launcher Special Melee Weapon Datajack Build | -11 -10 -9 ------- Run | Yrd Mat Mat Slots Evolved 2 | . . 2 Power . | . . . Propulsion 1 | . . 1 Utility 1 | . . 1 Weapon . | . . . Parts Attached 14 | 7 4 3 Power 1 | 1 . . Engine 1 | 1 . . Core . | . . . Reactor . | . . . Propulsion 2 | 2 . . Treads . | . . . Leg 2 | 2 . . Wheel . | . . . Hover . | . . . Flight . | . . . Utility 3 | 2 . 1 Device 1 | 1 . . Storage 1 | 1 . . Processor . | . . . Hackware . | . . . Protection 1 | . . 1 Artifact . | . . . Weapon 8 | 2 4 2 Energy Gun 2 | 1 1 . Energy Cannon . | . . . Ballistic Gun 1 | 1 . . Ballistic Cannon . | . . . Launcher 3 | . 2 1 Special Weapon . | . . . Impact Weapon . | . . . Slashing Weapon . | . . . Piercing Weapon . | . . . Special Melee Weapon 2 | . 1 1 Unidentified Prototypes 1 | . . 1 Parts Lost 3 | . . 3 Power . | . . . Propulsion . | . . . Utility 1 | . . 1 Weapon 2 | . . 2 Highest Loss Streak 2 | . . 2 To Critical Strikes . | . . . Average Slot Usage (%) 98 | . 100 84 Engine 13 | . 14 11 Leg 27 | . 28 22 Device 13 | . 14 11 Storage 13 | . 14 11 Protection 1 | . . 9 Launcher 15 | . 16 12 Special Melee Weapon 10 | . 10 7 Naked Turns . | . . . Heaviest Build 20 | 12 16 20 Greatest Support 20 | 20 20 20 Greatest Overweight (x) 3 | 3 . . Average Overweight (x) . | . . . Largest Inventory Capacity 8 | 8 8 8 Average Capacity 7 | 7 8 8 Most Carried 8 | 3 8 7 Average Carried 6 | 1 6 5 Final Capacity 8 | 8 8 8 Final Carried 7 | 2 7 5 Class Distribution -------------------- 100% | Mutant Dominant Class ---------------- Mutant | -10/Materials Mutant | -9/Materials Resources | -11 -10 -9 ----------- Run | Yrd Mat Mat Matter Collected 336 | 284 . 52 Remotely . | . . . Salvage Created 504 | 153 . 351 Parts 45 | 17 . 28 Haulers Intercepted 1 | . . 1 Recyclers Shooed 1 | 1 . . Parts Field Recycled . | . . . Retrieved Matter . | . . . Parts Self-Destructed . | . . . Prevented . | . . . Kills | -11 -10 -9 ------- Run | Yrd Mat Mat Combat Hostiles Destroyed 5 | . . 5 AOE 5 | . . 5 Classes Destroyed 8 | 3 . 5 Worker 1 | 1 . . Builder 5 | . . 5 Tunneler 3 | 3 . . Hauler 1 | . . 1 Recycler 2 | 1 . 1 Watcher 1 | . . 1 Grunt 3 | . . 3 Sentry 2 | . . 2 Best Kill Streak 12 | 2 . 12 Combat Bots Only 4 | . . 4 Max Kills in Single Turn 4 | 1 . 4 Gunslinging . | . . . Exploded 2 | . . 2 Melee . | . . . Uniques/NPCs Destroyed . | . . . Combat | -11 -10 -9 -------- Run | Yrd Mat Mat Hostile Shots Fired 26 | . . 26 Missed 11 | . . 11 Damage Taken 326 | . . 326 Core 61 | . . 61 Absorbed by Shields . | . . . Core Remaining (%) 100 | 100 100 . Volleys Fired 26 | 14 . 12 Largest 2 | 2 . 2 Hottest 63 | 60 . 63 Shots Fired 43 | 28 . 15 Gun 28 | 28 . . Cannon . | . . . Launcher 15 | . . 15 Special . | . . . Kinetic 14 | 14 . . Thermal . | . . . Explosive 11 | . . 11 Electromagnetic 18 | 14 . 4 Robot Hit Streak 14 | 5 . 14 Robot Miss Streak 3 | 3 . 2 Penetration Max . | . . . Secondary Targets . | . . . Shots Hit Robots 37 | 15 5 17 Core Hits 30 | 7 . 23 Critical Kills . | . . . Critical Parts Destroyed . | . . . Critical Strikes . | . . . Melee Attacks 11 | . 5 6 Impact . | . . . Slashing . | . . . Piercing . | . . . Sneak Attacks 11 | . 5 6 Combat Hostiles . | . . . Follow-up Attacks . | . . . Damage Inflicted 810 | 172 . 638 Guns 172 | 172 . . Cannons . | . . . Explosions 638 | . . 638 Melee . | . . . Ramming . | . . . Kinetic 48 | 48 . . Thermal . | . . . Explosive 463 | . . 463 Electromagnetic 299 | 124 . 175 Impact . | . . . Slashing . | . . . Piercing . | . . . Highest Corruption . | . . . Average Corruption . | . . . Corruption Purged . | . . . Corruption Blocked . | . . . Overload Shots . | . . . Overflow Damage 22 | . . 22 Projectiles . | . . . Explosions 22 | . . 22 Melee . | . . . Knockbacks . | . . . Impact . | . . . Kinetic . | . . . Secondary . | . . . Self-Inflicted Damage 122 | . . 122 Shots 9 | . . 9 Rammed . | . . . Targets Rammed . | . . . Kicked . | . . . Crushed . | . . . Highest Temperature 25 | 20 . 25 Average Temperature 12 | 14 . 9 Received Heat Transfer 84 | . . 84 Siege Activations . | . . . Robots Corrupted . | . . . Combat Hostiles . | . . . Parts Fried 1 | 1 . . Impact Corruptions . | . . . Robots Melted . | . . . Combat Hostiles . | . . . Parts Melted . | . . . Heat Transferred . | . . . Parts Sabotaged . | . . . Parts Stolen . | . . . Parts Stripped . | . . . Power Chain Reactions 1 | . . 1 Alert | -11 -10 -9 ------- Run | Yrd Mat Mat Peak Influence 211 | 25 20 211 Initial 16 | . 16 . Average 11 | 10 6 59 Maximum Alert Level 1 | . . 1 Low Security (%) 99 | 100 100 97 Level 1 . | . . 2 Level 2 . | . . . Level 3 . | . . . Level 4 . | . . . Level 5 . | . . . High Security . | . . . Max Security . | . . . Squads Dispatched 1 | . . 1 Investigation . | . . . Extermination . | . . . Reinforcement 1 | . . 1 Assault . | . . . Garrison . | . . . Intercept . | . . . Searches Triggered . | . . . Construction Impeded 1 | . . 1 Haulers Reinforced . | . . . Active Scanning Responses . | . . . Cargo Convoy Interrupts . | . . . Stealth | -11 -10 -9 --------- Run | Yrd Mat Mat Distress Signals 1 | . . 1 Communications Jammed . | . . . Distress Signals . | . . . Times Spotted 7 | . . 7 Peak Tracking Total 3 | . . 3 Tactical Retreats . | . . . Traps | -11 -10 -9 ------- Run | Yrd Mat Mat Traps Triggered . | . . . Indirectly . | . . . Trap Hack Attempts . | . . . Triggered . | . . . Disarmed . | . . . Reprogrammed . | . . . Reused . | . . . Traps Extracted . | . . . Installed . | . . . Triggered . | . . . Machines | -11 -10 -9 ---------- Run | Yrd Mat Mat Machines Disabled . | . . . Max in Single Turn . | . . . Machines Repaired . | . . . Machines Dismantled . | . . . Machines Sabotaged . | . . . Overloaded Fab Kills . | . . . Hacking | -11 -10 -9 --------- Run | Yrd Mat Mat Machines Accessed 2 | . 2 . Terminals 1 | . 1 . Fabricators . | . . . Repair Stations . | . . . Recycling Units 1 | . 1 . Scanalyzers . | . . . Garrison Access . | . . . Total Hacks 3 | . 3 . Successful 3 | . 3 . Failed . | . . . Catastrophic . | . . . Database Lockouts . | . . . Manual . | . . . Terminals 1 | . 1 . Fabricators . | . . . Repair Stations . | . . . Recycling Units 2 | . 2 . Scanalyzers . | . . . Garrison Access . | . . . Terminal Hacks 1 | . 1 . Emergency Access Points 1 | . 1 . Fabricator Hacks . | . . . Repair Station Hacks . | . . . Recycling Unit Hacks 2 | . 2 . Recycle Component 1 | . 1 . Report Inventory 1 | . 1 . Scanalyzer . | . . . Garrison Access Hacks . | . . . Unauthorized Hacks . | . . . Terminals . | . . . Fabricators . | . . . Repair Stations . | . . . Recycling Units . | . . . Scanalyzers . | . . . Garrison Access . | . . . Data Cores Recovered . | . . . Used . | . . . Hacking Detections 2 | . 2 . Full Trace Events . | . . . Feedback Events . | . . . Feedback Blocked . | . . . Robot Schematics Acquired . | . . . Robots Built . | . . . Authchips . | . . . Time . | . . . Total Robot Build Rating . | . . . Part Schematics Acquired . | . . . Parts Built . | . . . Authchips . | . . . Time . | . . . Total Part Build Rating . | . . . Parts Repaired . | . . . Time . | . . . Parts Recycled 1 | . 1 . Recycled Matter . | . . . Retrieved Matter . | . . . Retrieved Components . | . . . Parts Scanalyzed . | . . . Part Schematics Acquired . | . . . Parts Damaged . | . . . Bothacking | -11 -10 -9 ------------ Run | Yrd Mat Mat Used RIF Installer . | . . . Robots Hacked 6 | . 3 3 Non-combat 6 | . 3 3 Combat . | . . . Robot Hacks Applied 10 | . 4 6 no_distress 8 | . 4 4 find_recycling 2 | . . 2 Relay Couplers Released . | . . . Fabnet Peak Effective % . | . . . Robots Rewired . | . . . Allies Hacked . | . . . Hacks Repelled . | . . . Allies | -11 -10 -9 -------- Run | Yrd Mat Mat Total Allies . | . . . Largest Group . | . . . Highest-Rated Group . | . . . Highest-Rated Ally . | . . . Total Orders . | . . . Ally Attacks . | . . . Total Damage . | . . . Kills . | . . . Allies Corrupted . | . . . Allies Melted . | . . . Intel | -11 -10 -9 ------- Run | Yrd Mat Mat Robot Analysis Total . | . . . Derelict Logs Recovered . | . . . Drone Launches . | . . . Drone Recoveries . | . . . Exploration | -11 -10 -9 ------------- Run | Yrd Mat Mat Turns Passed 1479 | 181 1167 131 Spaces Moved 514 | 103 336 75 Core 7 | 7 . . Treads . | . . . Legs 507 | 96 336 75 Wheels . | . . . Hover . | . . . Flight . | . . . Fastest Speed 50 | 50 120 120 Average Speed 121 | 125 120 120 Slowest Speed 200 | 200 120 120 Overloaded Moves . | . . . Propulsion Burnouts . | . . . Robots Hopped . | . . . Cave-ins Triggered . | . . . Exploration Rate (%) 16 | 7 30 12 Regions Visited 2 Branch Regions . Pre-discovered Areas . | . . . Known Exits Taken . | . . . Unknown Exits Taken 2 | 1 1 . Scrap Searched . | . . . Spaces Dug . | . . . Terrain Destroyed 34 | . . 34 Melee . | . . . Projectile . | . . . AOE 34 | . . 34 Terrain Rammed . | . . . Walls Destroyed . | . . . Machines Disabled . | . . . Actions | -11 -10 -9 --------- Run | Yrd Mat Mat Total 1322 | 126 1098 98 Wait 743 | . 743 . Move 512 | 102 335 75 Hop . | . . . Pick Up 10 | 3 7 . Fast Attach 9 | 6 2 1 Attach 6 | 1 2 3 Detach 2 | . 1 1 Swap . | . . . Drop 3 | . 3 . Fire 26 | 14 . 12 Melee 11 | . 5 6 Ram . | . . . Kick . | . . . Crush . | . . . Escape Stasis . | . . . Rewire . | . . . Trap . | . . . Miscellaneous . | . . . Route ------- -11/Scrapyard -10/Materials -9/Materials History --------- Turn | Location | Event 11 | -11/Scrapyard | Discovered new exit (range 15) 182 | -11/Scrapyard | Entered Materials 289 | -10/Materials | Discovered new exit (range 16) 308 | -10/Materials | Build established: Mutant 1349 | -10/Materials | Entered another Materials area 1349 | -9/Materials | Evolved 2 slots: Propulsion x1, Utility x1 1480 | -9/Materials | Self-destructed Last Messages --------------- 01461_ U-05 Engineer destroyed. 01461_ R-06 Scavenger distress signal failed. 01461_ U-05 Engineer lays Concrete. 01463_ Med. Armor Plating destroyed. 01464_ Destroyed Lgt. Ion Engine. 01464_ R-06 Scavenger destroyed. 01464_ U-05 Engineer destroyed. 01464_ G-34 Mercenary destroyed. 01464_ A-02 Transporter destroyed. 01465_ W-16 Scout sends out distress signal. 01465_ U-05 Engineer lays Concrete. 01467_ G-34 Mercenary destroyed. 01467_ Chain reaction triggered in Corrupted Ion Engine. 01467_ U-05 Engineer lays Concrete. 01477_ Critical hit (Burn: +37). 01477_ U-05 Engineer lays Concrete. 01477_ Door malfunctions. 01477_ W-16 Scout destroyed. 01478_ U-05 Engineer lays Concrete. Map ----- +----------------------------------------------------+ | ?????????????????????????????????????????????????? | | ?????????????????????????????????????????????????? | | ?????????????????????????????????????????????????? | | ?????????????????????????????????????????????????? | | ?????????????????????????????????????????????????? | | ?????????????????????????????????????????????????? | | ?????????????????????????????????????????????????? | | ?????????????????????????????????????????????????? | | ?????????????????????????????????????????????????? | | ?????????????????????????????????????????????????? | | ??????????????????????????? ???????????????????? | | ??????????????????????????# #??????????????????? | | ??????????????????????????# #???????????######## | | ??????????????????????????# #???????????# | | ??????????????????????????# #???????????# | | ??????????????????????????# #???????????# | | ??????????????????????????# #???????????# #### | | ??????????????????????????# r#???????????# #??? | | ??????????????????????????# #???????????# #??? | | ??????????????????????????# #????######?# +??? | | ??????????????????????????# #???##!!!!### #??? | | ??????????? ##########???#|! ##??#! !## #### | | ??????????? ###!= #??# # | | ?????????? #[[= ##### # | | ????????????? [%%= # " | | ????????????????????# @[[ = !%! " | | ????????????????????# u !%%!!! # " | | ????????????????????# =%=########### # | | ????????????????????# [ #??????# # | | ???????????????????# !% #????? # | | ???????????????????# #???# # " | | ??????????????+ Y u #???# # " | | ??????????????# ##### #???# # | | ????????????????????# ###### ##???############# | | ???????????????????? ?????# #????????????????? | | ???????????????????? ?????# #????????????????? | | ???????????????????#= ?????+ +????????????????? | | ???????????????????# ??????# #????????????????? | | ???????????????????# ??????# #????????????????? | | ?????????????????????"??????# #????????????????? | | ????????????????????????????" #????????????????? | | ????????????????????????????" #????????????????? | | ????????????????????????????"=%!#????????????????? | | ????????????????????????????#%=!/????????????????? | | ?????????????????????????????[= #????????????????? | | ????????????????????????????? ?????????????????? | | ?????????????????????????????????????????????????? | | ?????????????????????????????????????????????????? | | ?????????????????????????????????????????????????? | | ?????????????????????????????????????????????????? | +----------------------------------------------------+ Best States ------------- Heat Dissipation 28 Energy Generation 10 Energy Capacity 125 Matter Stores 300 Matter Capacity 300 Sight Range 16 Terrain Scan Density 10 Armor Coverage 225 Evasion (%) 55 Item Schematics ----------------- None Robot Schematics ------------------ None Fabricated ------------ Nothing Alien Tech Used ----------------- None Achievements -------------- None Challenges ------------ None Game ------ Seed ImprovedKineticInterpreter Manual? 0 Play Time 00:10:06 Cumulative 16.0 hours Start 2024.06.09 @ 14:38:45 End 2024.07.19 @ 11:38:47 Sessions 6 Manual Loads 0 Difficulty Rogue Special Mode None Game No. 14 Rogue 9 Adventurer 5 Explorer 0 Win Type - Total 0 Types 0/0/0/0/0/0/0/0/0 Lore% 8 Gallery% 21 Achievement% 23 Wizard Run 0 Options --------- Layout 2 ASCII 0 Keyboard 1 Movement Numpad Keybinds 0 Fullscreen 1 Font 24/Smallcaps Map View 50x44 Zoom Use 0% Tactical HUD 1 Map Filters NONE Filters NONE Steam 1 RUN: 26b4d807-1f9f-4560-a69c-6dde765a3097